[Event "Titled Tuesday Blitz August 15 Early 2023"]
[White "Lopez Gracia, Fernando"]
[Black "Budrewicz, Krzysztof"]
[WhiteFideId "2207184"]
[BlackFideId "1127950"]
[WhiteElo "2350"]
[BlackElo "2560"]
[Result "0-1"]
[Round "11"]
[TimeControl "180+1"]
[Date "2023.08.15"]
[WhiteClock "0:00:08"]
[BlackClock "0:01:39"]
[Board "108"]

1. e4 {[%clk 0:02:52]}  d5 {[%clk 0:02:58]} 2. d3 {[%clk 0:02:50]}  dxe4 {[%clk 0:02:57]} 3. dxe4 {[%clk 0:02:46]}  Qxd1+ {[%clk 0:02:57]} 4. Kxd1 {[%clk 0:02:44]}  Nf6 {[%clk 0:02:57]} 5. Nc3 {[%clk 0:02:42]}  e5 {[%clk 0:02:55]} 6. f3 {[%clk 0:02:39]}  Bb4 {[%clk 0:02:54]} 7. Be3 {[%clk 0:02:39]}  O-O {[%clk 0:02:52]} 8. Ke1 {[%clk 0:02:38]}  Nc6 {[%clk 0:02:51]} 9. Bc4 {[%clk 0:02:38]}  Nd4 {[%clk 0:02:51]} 10. Rc1 {[%clk 0:02:37]}  Be6 {[%clk 0:02:49]} 11. Bxe6 {[%clk 0:02:15]}  fxe6 {[%clk 0:02:47]} 12. Ne2 {[%clk 0:02:15]}  c5 {[%clk 0:02:45]} 13. a3 {[%clk 0:02:13]}  Ba5 {[%clk 0:02:45]} 14. h3 {[%clk 0:02:12]}  Nh5 {[%clk 0:02:45]} 15. Kf2 {[%clk 0:02:11]}  Nf4 {[%clk 0:02:45]} 16. Nxf4 {[%clk 0:02:05]}  exf4 {[%clk 0:02:44]} 17. Bxd4 {[%clk 0:02:04]}  cxd4 {[%clk 0:02:44]} 18. Ne2 {[%clk 0:01:57]}  Bd2 {[%clk 0:02:44]} 19. Rcd1 {[%clk 0:01:56]}  Be3+ {[%clk 0:02:45]} 20. Kf1 {[%clk 0:01:56]}  Rfd8 {[%clk 0:02:44]} 21. g3 {[%clk 0:01:51]}  e5 {[%clk 0:02:42]} 22. Kg2 {[%clk 0:01:48]}  Rac8 {[%clk 0:02:41]} 23. c3 {[%clk 0:01:48]}  d3 {[%clk 0:02:32]} 24. Nc1 {[%clk 0:01:48]}  d2 {[%clk 0:02:32]} 25. Ne2 {[%clk 0:01:46]}  b5 {[%clk 0:02:31]} 26. b4 {[%clk 0:01:41]}  Rd3 {[%clk 0:02:29]} 27. h4 {[%clk 0:01:38]}  Kf7 {[%clk 0:02:28]} 28. gxf4 {[%clk 0:01:37]}  exf4 {[%clk 0:02:28]} 29. Kh3 {[%clk 0:01:38]}  h5 {[%clk 0:02:25]} 30. Rh2 {[%clk 0:01:36]}  g6 {[%clk 0:02:21]} 31. Rg2 {[%clk 0:01:36]}  Rdxc3 {[%clk 0:02:18]} 32. Nxc3 {[%clk 0:01:34]}  Rxc3 {[%clk 0:02:18]} 33. Re2 {[%clk 0:01:07]}  Rxa3 {[%clk 0:02:16]} 34. Kg2 {[%clk 0:01:07]}  Rb3 {[%clk 0:02:15]} 35. Rdxd2 {[%clk 0:00:59]}  Bxd2 {[%clk 0:02:15]} 36. Rxd2 {[%clk 0:01:00]}  Rxb4 {[%clk 0:02:07]} 37. Rd7+ {[%clk 0:00:59]}  Ke6 {[%clk 0:02:03]} 38. Rxa7 {[%clk 0:01:00]}  Ke5 {[%clk 0:02:03]} 39. Ra6 {[%clk 0:00:52]}  Kd4 {[%clk 0:02:03]} 40. Rxg6 {[%clk 0:00:49]}  Ke3 {[%clk 0:02:03]} 41. Rg5 {[%clk 0:00:43]}  Rb2+ {[%clk 0:02:04]} 42. Kh3 {[%clk 0:00:43]}  Kxf3 {[%clk 0:02:04]} 43. e5 {[%clk 0:00:41]}  Rb1 {[%clk 0:01:54]} 44. Kh2 {[%clk 0:00:38]}  Rb2+ {[%clk 0:01:54]} 45. Kh3 {[%clk 0:00:39]}  Re2 {[%clk 0:01:50]} 46. Rxh5 {[%clk 0:00:37]}  b4 {[%clk 0:01:50]} 47. e6 {[%clk 0:00:29]}  b3 {[%clk 0:01:50]} 48. Rb5 {[%clk 0:00:28]}  b2 {[%clk 0:01:50]} 49. e7 {[%clk 0:00:26]}  Re1 {[%clk 0:01:49]} 50. Rb3+ {[%clk 0:00:22]}  Re3 {[%clk 0:01:44]} 51. Rxe3+ {[%clk 0:00:15]}  fxe3 {[%clk 0:01:44]} 52. e8=Q {[%clk 0:00:15]}  b1=Q {[%clk 0:01:45]} 53. Qh5+ {[%clk 0:00:15]}  Kf2 {[%clk 0:01:44]} 54. Qf7+ {[%clk 0:00:15]}  Ke1 {[%clk 0:01:43]} 55. h5 {[%clk 0:00:14]}  e2 {[%clk 0:01:41]} 56. h6 {[%clk 0:00:14]}  Qd3+ {[%clk 0:01:40]} 57. Kg2 {[%clk 0:00:11]}  Kd1 {[%clk 0:01:41]} 58. h7 {[%clk 0:00:08]}  e1=Q {[%clk 0:01:39]} 59. h8=Q {[%clk 0:00:08]}  Qdg3# {[%clk 0:01:39]} 0-1


[Site "https://www.chess.com"]

[Event "Titled Tuesday Blitz August 15 Early 2023"]
[White "Arutla, Aditya"]
[Black "Nithyalakshmi, Sivanesan"]
[WhiteFideId "30961998"]
[BlackFideId "5706955"]
[WhiteElo "2491"]
[BlackElo "2337"]
[Result "1-0"]
[Round "11"]
[TimeControl "180+1"]
[Date "2023.08.15"]
[WhiteClock "0:00:24"]
[BlackClock "0:00:09"]
[Board "111"]

1. d4 {[%clk 0:03:00]}  Nf6 {[%clk 0:02:57]} 2. Bf4 {[%clk 0:03:01]}  e6 {[%clk 0:02:53]} 3. e3 {[%clk 0:02:59]}  d5 {[%clk 0:02:54]} 4. Nf3 {[%clk 0:02:58]}  Bd6 {[%clk 0:02:54]} 5. Ne5 {[%clk 0:02:57]}  c5 {[%clk 0:02:50]} 6. c3 {[%clk 0:02:57]}  O-O {[%clk 0:02:50]} 7. Nd2 {[%clk 0:02:56]}  Nc6 {[%clk 0:02:37]} 8. Bd3 {[%clk 0:02:26]}  Qc7 {[%clk 0:02:34]} 9. Ndf3 {[%clk 0:02:25]}  h6 {[%clk 0:02:25]} 10. h4 {[%clk 0:02:15]}  Nd7 {[%clk 0:01:59]} 11. Nxc6 {[%clk 0:02:07]}  bxc6 {[%clk 0:01:56]} 12. Qd2 {[%clk 0:02:03]}  cxd4 {[%clk 0:01:48]} 13. Bxd6 {[%clk 0:01:58]}  Qxd6 {[%clk 0:01:47]} 14. cxd4 {[%clk 0:01:58]}  c5 {[%clk 0:01:43]} 15. O-O {[%clk 0:01:57]}  e5 {[%clk 0:01:35]} 16. dxe5 {[%clk 0:01:53]}  Nxe5 {[%clk 0:01:36]} 17. Nxe5 {[%clk 0:01:53]}  Qxe5 {[%clk 0:01:36]} 18. Rac1 {[%clk 0:01:53]}  c4 {[%clk 0:01:32]} 19. Be2 {[%clk 0:01:53]}  Rb8 {[%clk 0:01:31]} 20. Rc3 {[%clk 0:01:43]}  Be6 {[%clk 0:01:21]} 21. Rd1 {[%clk 0:01:42]}  Rb6 {[%clk 0:01:17]} 22. Bf3 {[%clk 0:01:34]}  Rfb8 {[%clk 0:01:14]} 23. Bxd5 {[%clk 0:01:20]}  Rxb2 {[%clk 0:01:13]} 24. Qd4 {[%clk 0:01:20]}  Qf5 {[%clk 0:01:03]} 25. e4 {[%clk 0:01:12]}  Qg4 {[%clk 0:00:55]} 26. Bxe6 {[%clk 0:00:54]}  Qxe6 {[%clk 0:00:55]} 27. Qxc4 {[%clk 0:00:41]}  Qxc4 {[%clk 0:00:54]} 28. Rxc4 {[%clk 0:00:42]}  Rxa2 {[%clk 0:00:54]} 29. Rc7 {[%clk 0:00:42]}  Rbb2 {[%clk 0:00:53]} 30. Rd8+ {[%clk 0:00:41]}  Kh7 {[%clk 0:00:49]} 31. Rxf7 {[%clk 0:00:42]}  Rb1+ {[%clk 0:00:42]} 32. Kh2 {[%clk 0:00:41]}  Rb6 {[%clk 0:00:36]} 33. Rdd7 {[%clk 0:00:34]}  Rg6 {[%clk 0:00:36]} 34. Rxa7 {[%clk 0:00:34]}  Rxa7 {[%clk 0:00:32]} 35. Rxa7 {[%clk 0:00:33]}  Rg4 {[%clk 0:00:32]} 36. f3 {[%clk 0:00:27]}  Rxh4+ {[%clk 0:00:33]} 37. Kg3 {[%clk 0:00:28]}  Rh5 {[%clk 0:00:33]} 38. Kf4 {[%clk 0:00:28]}  Rg5 {[%clk 0:00:30]} 39. g4 {[%clk 0:00:23]}  Rb5 {[%clk 0:00:29]} 40. e5 {[%clk 0:00:22]}  Kg6 {[%clk 0:00:28]} 41. Ra6+ {[%clk 0:00:23]}  Kf7 {[%clk 0:00:28]} 42. Kf5 {[%clk 0:00:23]}  Rb7 {[%clk 0:00:26]} 43. Rd6 {[%clk 0:00:20]}  Rb5 {[%clk 0:00:22]} 44. f4 {[%clk 0:00:19]}  Rb7 {[%clk 0:00:18]} 45. e6+ {[%clk 0:00:19]}  Ke7 {[%clk 0:00:18]} 46. Rd7+ {[%clk 0:00:19]}  Rxd7 {[%clk 0:00:18]} 47. exd7 {[%clk 0:00:20]}  Kxd7 {[%clk 0:00:19]} 48. Kg6 {[%clk 0:00:21]}  Ke6 {[%clk 0:00:17]} 49. Kxg7 {[%clk 0:00:21]}  h5 {[%clk 0:00:13]} 50. gxh5 {[%clk 0:00:22]}  Kf5 {[%clk 0:00:13]} 51. h6 {[%clk 0:00:23]}  Kxf4 {[%clk 0:00:09]} 52. h7 {[%clk 0:00:24]} 1-0


[Site "https://www.chess.com"]

[Event "Titled Tuesday Blitz August 15 Early 2023"]
[White "Seletsky, Grigory"]
[Black "UgarteCesar"]
[WhiteFideId "14112191"]
[WhiteElo "2484"]
[BlackElo "2336"]
[Result "1-0"]
[Round "11"]
[TimeControl "180+1"]
[Date "2023.08.15"]
[WhiteClock "0:02:15"]
[BlackClock "0:01:30"]
[Board "112"]

1. e4 {[%clk 0:02:58]}  c5 {[%clk 0:03:00]} 2. Nc3 {[%clk 0:02:57]}  Nc6 {[%clk 0:03:00]} 3. d3 {[%clk 0:02:58]}  g6 {[%clk 0:03:00]} 4. Be3 {[%clk 0:02:58]}  b6 {[%clk 0:02:59]} 5. d4 {[%clk 0:02:58]}  cxd4 {[%clk 0:02:58]} 6. Bxd4 {[%clk 0:02:59]}  Nxd4 {[%clk 0:02:58]} 7. Qxd4 {[%clk 0:03:00]}  f6 {[%clk 0:02:42]} 8. O-O-O {[%clk 0:02:59]}  Nh6 {[%clk 0:02:36]} 9. Bc4 {[%clk 0:02:59]}  Bb7 {[%clk 0:02:14]} 10. f4 {[%clk 0:02:57]}  Bg7 {[%clk 0:02:12]} 11. Nf3 {[%clk 0:02:56]}  Rc8 {[%clk 0:02:13]} 12. h3 {[%clk 0:02:53]}  e6 {[%clk 0:02:06]} 13. Nb5 {[%clk 0:02:42]}  Nf7 {[%clk 0:01:57]} 14. f5 {[%clk 0:02:37]}  gxf5 {[%clk 0:01:54]} 15. exf5 {[%clk 0:02:37]}  a6 {[%clk 0:01:45]} 16. Nc3 {[%clk 0:02:27]}  Qc7 {[%clk 0:01:41]} 17. fxe6 {[%clk 0:02:17]}  Qxc4 {[%clk 0:01:30]} 18. Qxd7+ {[%clk 0:02:15]} 1-0


[Site "https://www.chess.com"]

[Event "Titled Tuesday Blitz August 15 Early 2023"]
[White "Preobrazhenska_D2011"]
[Black "Shuvalov, Evgenij"]
[BlackFideId "4187237"]
[WhiteElo "2303"]
[BlackElo "2451"]
[Result "0-1"]
[Round "11"]
[TimeControl "180+1"]
[Date "2023.08.15"]
[WhiteClock "0:00:05"]
[BlackClock "0:00:14"]
[Board "117"]

1. e4 {[%clk 0:02:59]}  e6 {[%clk 0:02:58]} 2. d4 {[%clk 0:02:59]}  d5 {[%clk 0:02:58]} 3. Nc3 {[%clk 0:02:59]}  Bb4 {[%clk 0:02:57]} 4. e5 {[%clk 0:02:59]}  c5 {[%clk 0:02:57]} 5. a3 {[%clk 0:02:59]}  Bxc3+ {[%clk 0:02:58]} 6. bxc3 {[%clk 0:03:00]}  Ne7 {[%clk 0:02:58]} 7. Qg4 {[%clk 0:02:59]}  Qc7 {[%clk 0:02:58]} 8. Bd3 {[%clk 0:02:31]}  c4 {[%clk 0:02:57]} 9. Be2 {[%clk 0:02:28]}  Nf5 {[%clk 0:02:56]} 10. Nf3 {[%clk 0:02:21]}  Nc6 {[%clk 0:02:56]} 11. Qf4 {[%clk 0:02:17]}  Qa5 {[%clk 0:02:49]} 12. Bd2 {[%clk 0:02:12]}  Bd7 {[%clk 0:02:48]} 13. Ng5 {[%clk 0:02:03]}  O-O {[%clk 0:02:18]} 14. g4 {[%clk 0:01:52]}  Nfe7 {[%clk 0:02:17]} 15. h4 {[%clk 0:01:46]}  f6 {[%clk 0:02:11]} 16. exf6 {[%clk 0:01:47]}  Rxf6 {[%clk 0:02:12]} 17. Qg3 {[%clk 0:01:47]}  Raf8 {[%clk 0:02:07]} 18. h5 {[%clk 0:01:36]}  Rxf2 {[%clk 0:01:29]} 19. Nh3 {[%clk 0:01:07]}  R2f7 {[%clk 0:01:20]} 20. g5 {[%clk 0:01:04]}  Nf5 {[%clk 0:01:18]} 21. Qh2 {[%clk 0:00:57]}  Nh4 {[%clk 0:01:10]} 22. Ng1 {[%clk 0:00:45]}  Nf5 {[%clk 0:00:57]} 23. g6 {[%clk 0:00:43]}  Rf6 {[%clk 0:00:57]} 24. gxh7+ {[%clk 0:00:35]}  Kh8 {[%clk 0:00:57]} 25. Nf3 {[%clk 0:00:35]}  Be8 {[%clk 0:00:50]} 26. Ng5 {[%clk 0:00:28]}  Ne3 {[%clk 0:00:39]} 27. Rc1 {[%clk 0:00:11]}  Rf2 {[%clk 0:00:25]} 28. Qxf2 {[%clk 0:00:11]}  Rxf2 {[%clk 0:00:25]} 29. Kxf2 {[%clk 0:00:12]}  Nf5 {[%clk 0:00:24]} 30. Nxe6 {[%clk 0:00:10]}  Ncxd4 {[%clk 0:00:22]} 31. Nxd4 {[%clk 0:00:07]}  Nxd4 {[%clk 0:00:22]} 32. h6 {[%clk 0:00:06]}  g5 {[%clk 0:00:21]} 33. Rhg1 {[%clk 0:00:04]}  Nxe2 {[%clk 0:00:19]} 34. Kxe2 {[%clk 0:00:05]}  Bh5+ {[%clk 0:00:18]} 35. Kf2 {[%clk 0:00:04]}  Qb6+ {[%clk 0:00:18]} 36. Be3 {[%clk 0:00:04]}  Qf6+ {[%clk 0:00:18]} 37. Ke1 {[%clk 0:00:03]}  Qxc3+ {[%clk 0:00:17]} 38. Kf2 {[%clk 0:00:03]}  Qf6+ {[%clk 0:00:17]} 39. Ke1 {[%clk 0:00:04]}  d4 {[%clk 0:00:17]} 40. Bf2 {[%clk 0:00:04]}  Qe5+ {[%clk 0:00:16]} 41. Kf1 {[%clk 0:00:04]}  Be2+ {[%clk 0:00:16]} 42. Kg2 {[%clk 0:00:05]}  Qe4+ {[%clk 0:00:16]} 43. Kh2 {[%clk 0:00:05]}  Qf4+ {[%clk 0:00:16]} 44. Bg3 {[%clk 0:00:05]}  Qd2 {[%clk 0:00:15]} 45. Bf2 {[%clk 0:00:03]}  Bf3 {[%clk 0:00:15]} 46. Rgf1 {[%clk 0:00:03]}  Kxh7 {[%clk 0:00:14]} 47. Kg3 {[%clk 0:00:04]}  Qf4+ {[%clk 0:00:14]} 48. Kh3 {[%clk 0:00:05]}  Qg4+ {[%clk 0:00:14]} 49. Kh2 {[%clk 0:00:05]}  Qg2# {[%clk 0:00:14]} 0-1


[Site "https://www.chess.com"]

[Event "Titled Tuesday Blitz August 15 Early 2023"]
[White "favesaul"]
[Black "Martin, Lewis"]
[BlackFideId "410551"]
[WhiteElo "2434"]
[BlackElo "2291"]
[Result "0-1"]
[Round "11"]
[TimeControl "180+1"]
[Date "2023.08.15"]
[WhiteClock "0:00:00"]
[BlackClock "0:00:09"]
[Board "119"]

1. Nf3 {[%clk 0:03:00]}  Nf6 {[%clk 0:02:59]} 2. c4 {[%clk 0:02:58]}  c6 {[%clk 0:02:59]} 3. Nc3 {[%clk 0:02:56]}  d5 {[%clk 0:02:59]} 4. d4 {[%clk 0:02:56]}  e6 {[%clk 0:02:59]} 5. Bg5 {[%clk 0:02:52]}  h6 {[%clk 0:02:58]} 6. Bh4 {[%clk 0:02:52]}  dxc4 {[%clk 0:02:57]} 7. e3 {[%clk 0:02:48]}  b5 {[%clk 0:02:48]} 8. a4 {[%clk 0:02:48]}  g5 {[%clk 0:02:34]} 9. Bg3 {[%clk 0:02:46]}  Bb4 {[%clk 0:02:26]} 10. Qc2 {[%clk 0:02:36]}  Nbd7 {[%clk 0:02:20]} 11. h4 {[%clk 0:02:30]}  g4 {[%clk 0:02:17]} 12. Ne5 {[%clk 0:02:20]}  Bb7 {[%clk 0:02:17]} 13. Be2 {[%clk 0:02:16]}  h5 {[%clk 0:02:15]} 14. O-O {[%clk 0:02:06]}  a6 {[%clk 0:02:14]} 15. Rfd1 {[%clk 0:01:56]}  Be7 {[%clk 0:02:06]} 16. Bf1 {[%clk 0:01:37]}  Nd5 {[%clk 0:01:58]} 17. Nxd7 {[%clk 0:01:28]}  Kxd7 {[%clk 0:01:52]} 18. b3 {[%clk 0:01:23]}  cxb3 {[%clk 0:01:48]} 19. Qxb3 {[%clk 0:01:23]}  Bxh4 {[%clk 0:01:46]} 20. Bxh4 {[%clk 0:01:04]}  Qxh4 {[%clk 0:01:45]} 21. g3 {[%clk 0:01:04]}  Qe7 {[%clk 0:01:35]} 22. Ne4 {[%clk 0:01:04]}  h4 {[%clk 0:01:30]} 23. Nc5+ {[%clk 0:00:44]}  Kc7 {[%clk 0:01:29]} 24. e4 {[%clk 0:00:43]}  hxg3 {[%clk 0:01:22]} 25. fxg3 {[%clk 0:00:40]}  Nb6 {[%clk 0:01:13]} 26. a5 {[%clk 0:00:39]}  Nd7 {[%clk 0:01:10]} 27. Rac1 {[%clk 0:00:37]}  Rh5 {[%clk 0:00:59]} 28. Nxd7 {[%clk 0:00:26]}  Kxd7 {[%clk 0:00:55]} 29. d5 {[%clk 0:00:18]}  exd5 {[%clk 0:00:54]} 30. exd5 {[%clk 0:00:18]}  Rxd5 {[%clk 0:00:49]} 31. Bg2 {[%clk 0:00:18]}  Rxd1+ {[%clk 0:00:37]} 32. Qxd1+ {[%clk 0:00:18]}  Kc7 {[%clk 0:00:34]} 33. Qxg4 {[%clk 0:00:18]}  Rd8 {[%clk 0:00:32]} 34. Qf4+ {[%clk 0:00:12]}  Qd6 {[%clk 0:00:29]} 35. Qxf7+ {[%clk 0:00:11]}  Rd7 {[%clk 0:00:29]} 36. Qf2 {[%clk 0:00:11]}  Rg7 {[%clk 0:00:27]} 37. Qb6+ {[%clk 0:00:08]}  Kb8 {[%clk 0:00:27]} 38. Rxc6 {[%clk 0:00:05]}  Qd1+ {[%clk 0:00:19]} 39. Bf1 {[%clk 0:00:05]}  Rxg3+ {[%clk 0:00:17]} 40. Kf2 {[%clk 0:00:06]}  Qf3+ {[%clk 0:00:16]} 41. Ke1 {[%clk 0:00:06]}  Qxc6 {[%clk 0:00:16]} 42. Qd8+ {[%clk 0:00:06]}  Ka7 {[%clk 0:00:15]} 43. Qd4+ {[%clk 0:00:05]}  Ka8 {[%clk 0:00:15]} 44. Qd8+ {[%clk 0:00:05]}  Qc8 {[%clk 0:00:15]} 45. Qd6 {[%clk 0:00:05]}  Re3+ {[%clk 0:00:15]} 46. Kd2 {[%clk 0:00:05]}  Re6 {[%clk 0:00:15]} 47. Qd4 {[%clk 0:00:04]}  Rc6 {[%clk 0:00:13]} 48. Bd3 {[%clk 0:00:03]}  Qf8 {[%clk 0:00:09]} 49. Be4 {[%clk 0:00:03]}  Rd6 {[%clk 0:00:09]} 50. Bxb7+ {[%clk 0:00:00]}  Kxb7 {[%clk 0:00:09]} 0-1


[Site "https://www.chess.com"]

[Event "Titled Tuesday Blitz August 15 Early 2023"]
[White "Zaichenko, Daria"]
[Black "Rosenberg, Evan S"]
[WhiteFideId "4197453"]
[BlackFideId "2019299"]
[WhiteElo "2240"]
[BlackElo "2433"]
[Result "1-0"]
[Round "11"]
[TimeControl "180+1"]
[Date "2023.08.15"]
[WhiteClock "0:00:49"]
[BlackClock "0:00:30"]
[Board "120"]

1. e4 {[%clk 0:03:00]}  e5 {[%clk 0:02:58]} 2. Nf3 {[%clk 0:02:59]}  Nc6 {[%clk 0:02:58]} 3. Bc4 {[%clk 0:02:58]}  Nf6 {[%clk 0:02:58]} 4. d3 {[%clk 0:02:58]}  h6 {[%clk 0:02:58]} 5. c3 {[%clk 0:02:57]}  d6 {[%clk 0:02:57]} 6. Bb3 {[%clk 0:02:57]}  g6 {[%clk 0:02:55]} 7. Nbd2 {[%clk 0:02:57]}  Bg7 {[%clk 0:02:55]} 8. Nf1 {[%clk 0:02:58]}  O-O {[%clk 0:02:54]} 9. Ng3 {[%clk 0:02:58]}  d5 {[%clk 0:02:53]} 10. Qe2 {[%clk 0:02:57]}  a5 {[%clk 0:02:52]} 11. a4 {[%clk 0:02:56]}  Re8 {[%clk 0:02:50]} 12. O-O {[%clk 0:02:56]}  Bg4 {[%clk 0:02:48]} 13. h3 {[%clk 0:02:55]}  Be6 {[%clk 0:02:48]} 14. Bc2 {[%clk 0:02:45]}  Qd7 {[%clk 0:02:42]} 15. Kh2 {[%clk 0:02:43]}  Rad8 {[%clk 0:02:41]} 16. Bd2 {[%clk 0:02:06]}  Re7 {[%clk 0:02:10]} 17. Rad1 {[%clk 0:01:59]}  Rde8 {[%clk 0:02:03]} 18. Bb3 {[%clk 0:01:54]}  Qd6 {[%clk 0:01:59]} 19. Bc2 {[%clk 0:01:28]}  b6 {[%clk 0:01:51]} 20. d4 {[%clk 0:01:19]}  Nd7 {[%clk 0:01:38]} 21. dxe5 {[%clk 0:01:16]}  Ndxe5 {[%clk 0:01:28]} 22. Nxe5 {[%clk 0:01:16]}  Nxe5 {[%clk 0:01:19]} 23. f4 {[%clk 0:01:07]}  Nc4 {[%clk 0:01:19]} 24. e5 {[%clk 0:01:07]}  Qc6 {[%clk 0:01:04]} 25. Bc1 {[%clk 0:01:03]}  b5 {[%clk 0:00:54]} 26. axb5 {[%clk 0:00:58]}  Qxb5 {[%clk 0:00:55]} 27. b3 {[%clk 0:00:58]}  Bd7 {[%clk 0:00:29]} 28. bxc4 {[%clk 0:00:49]}  dxc4 {[%clk 0:00:30]} 1-0


[Site "https://www.chess.com"]

[Event "Titled Tuesday Blitz August 15 Early 2023"]
[White "Seifert, Henryk"]
[Black "Frayna, Janelle Mae"]
[WhiteFideId "1100963"]
[BlackFideId "5212499"]
[WhiteElo "2118"]
[BlackElo "2393"]
[Result "0-1"]
[Round "11"]
[TimeControl "180+1"]
[Date "2023.08.15"]
[WhiteClock "0:00:00"]
[BlackClock "0:01:50"]
[Board "123"]

1. e4 {[%clk 0:03:00]}  Nf6 {[%clk 0:03:00]} 2. Nc3 {[%clk 0:02:59]}  d5 {[%clk 0:03:00]} 3. e5 {[%clk 0:03:00]}  Nfd7 {[%clk 0:03:00]} 4. d4 {[%clk 0:02:58]}  e6 {[%clk 0:03:01]} 5. Nf3 {[%clk 0:02:50]}  c5 {[%clk 0:02:58]} 6. dxc5 {[%clk 0:02:48]}  Nc6 {[%clk 0:02:59]} 7. Bf4 {[%clk 0:02:42]}  Bxc5 {[%clk 0:02:58]} 8. Bd3 {[%clk 0:02:42]}  f6 {[%clk 0:02:57]} 9. exf6 {[%clk 0:02:41]}  Qxf6 {[%clk 0:02:56]} 10. Bg3 {[%clk 0:02:36]}  O-O {[%clk 0:02:56]} 11. O-O {[%clk 0:02:35]}  h6 {[%clk 0:02:50]} 12. a3 {[%clk 0:02:32]}  Nb6 {[%clk 0:02:40]} 13. Qe2 {[%clk 0:02:26]}  Bd7 {[%clk 0:02:39]} 14. Rae1 {[%clk 0:02:22]}  Rae8 {[%clk 0:02:38]} 15. Ne5 {[%clk 0:02:03]}  Bd4 {[%clk 0:02:36]} 16. Nxc6 {[%clk 0:01:46]}  Bxc6 {[%clk 0:02:30]} 17. Be5 {[%clk 0:01:33]}  Bxe5 {[%clk 0:02:27]} 18. Qxe5 {[%clk 0:01:33]}  Qxe5 {[%clk 0:02:27]} 19. Rxe5 {[%clk 0:01:33]}  Nd7 {[%clk 0:02:26]} 20. Re2 {[%clk 0:01:28]}  e5 {[%clk 0:02:27]} 21. Bb5 {[%clk 0:01:07]}  Nf6 {[%clk 0:02:25]} 22. Rfe1 {[%clk 0:01:01]}  e4 {[%clk 0:02:19]} 23. f3 {[%clk 0:00:33]}  exf3 {[%clk 0:02:09]} 24. Rxe8 {[%clk 0:00:31]}  Rxe8 {[%clk 0:02:02]} 25. Rxe8+ {[%clk 0:00:31]}  Nxe8 {[%clk 0:02:01]} 26. gxf3 {[%clk 0:00:28]}  Nd6 {[%clk 0:02:01]} 27. Bd3 {[%clk 0:00:25]}  d4 {[%clk 0:01:59]} 28. Ne4 {[%clk 0:00:19]}  Bxe4 {[%clk 0:01:57]} 29. Bxe4 {[%clk 0:00:16]}  Nxe4 {[%clk 0:01:50]} 30. f4 {[%clk 0:00:00]}  Kf7 {[%clk 0:01:50]} 0-1


[Site "https://www.chess.com"]

[Event "Titled Tuesday Blitz August 15 Early 2023"]
[White "Korpics, Zsolt"]
[Black "Wilson, Otis"]
[WhiteFideId "705241"]
[BlackFideId "30904021"]
[WhiteElo "2373"]
[BlackElo "2011"]
[Result "1-0"]
[Round "11"]
[TimeControl "180+1"]
[Date "2023.08.15"]
[WhiteClock "0:01:56"]
[BlackClock "0:00:00"]
[Board "125"]

1. e4 {[%clk 0:03:00]}  d6 {[%clk 0:03:00]} 2. d4 {[%clk 0:03:00]}  Nf6 {[%clk 0:03:01]} 3. Nc3 {[%clk 0:03:00]}  e5 {[%clk 0:03:00]} 4. Nf3 {[%clk 0:03:00]}  exd4 {[%clk 0:03:00]} 5. Nxd4 {[%clk 0:03:01]}  Be7 {[%clk 0:03:00]} 6. Bf4 {[%clk 0:03:00]}  O-O {[%clk 0:02:59]} 7. Qd2 {[%clk 0:03:00]}  Re8 {[%clk 0:02:56]} 8. O-O-O {[%clk 0:03:00]}  Bf8 {[%clk 0:02:50]} 9. f3 {[%clk 0:02:58]}  Nbd7 {[%clk 0:02:43]} 10. g4 {[%clk 0:02:57]}  Ne5 {[%clk 0:02:41]} 11. Be2 {[%clk 0:02:57]}  a6 {[%clk 0:02:36]} 12. h4 {[%clk 0:02:55]}  c5 {[%clk 0:02:19]} 13. Nf5 {[%clk 0:02:54]}  Bxf5 {[%clk 0:02:17]} 14. gxf5 {[%clk 0:02:54]}  b5 {[%clk 0:02:08]} 15. h5 {[%clk 0:02:49]}  Qa5 {[%clk 0:01:57]} 16. Kb1 {[%clk 0:02:45]}  Nc4 {[%clk 0:01:49]} 17. Bxc4 {[%clk 0:02:40]}  bxc4 {[%clk 0:01:50]} 18. Qg2 {[%clk 0:02:39]}  Rab8 {[%clk 0:01:47]} 19. Ka1 {[%clk 0:02:38]}  Rb6 {[%clk 0:01:39]} 20. Bc1 {[%clk 0:02:32]}  Reb8 {[%clk 0:01:37]} 21. Qd2 {[%clk 0:02:18]}  Qb4 {[%clk 0:00:49]} 22. a3 {[%clk 0:02:13]}  Qa5 {[%clk 0:00:44]} 23. h6 {[%clk 0:02:05]}  R6b7 {[%clk 0:00:16]} 24. hxg7 {[%clk 0:02:01]}  Bxg7 {[%clk 0:00:13]} 25. Rdg1 {[%clk 0:02:01]}  Kh8 {[%clk 0:00:11]} 26. Rxg7 {[%clk 0:02:01]}  Kxg7 {[%clk 0:00:11]} 27. Qh6+ {[%clk 0:01:59]}  Kh8 {[%clk 0:00:06]} 28. Qxf6+ {[%clk 0:01:59]}  Kg8 {[%clk 0:00:00]} 29. Bh6 {[%clk 0:01:56]} 1-0


[Site "https://www.chess.com"]

[Event "Titled Tuesday Blitz August 15 Early 2023"]
[White "Navyblue1"]
[Black "Jakubowska, Anna"]
[BlackFideId "1121952"]
[WhiteElo "1996"]
[BlackElo "2368"]
[Result "0-1"]
[Round "11"]
[TimeControl "180+1"]
[Date "2023.08.15"]
[WhiteClock "0:00:07"]
[BlackClock "0:00:42"]
[Board "126"]

1. d4 {[%clk 0:02:58]}  g6 {[%clk 0:02:59]} 2. c4 {[%clk 0:02:56]}  Bg7 {[%clk 0:02:59]} 3. Nc3 {[%clk 0:02:55]}  d6 {[%clk 0:03:00]} 4. e4 {[%clk 0:02:53]}  Nd7 {[%clk 0:02:59]} 5. h3 {[%clk 0:02:49]}  e5 {[%clk 0:02:57]} 6. d5 {[%clk 0:02:48]}  Ne7 {[%clk 0:02:56]} 7. Be3 {[%clk 0:02:45]}  a5 {[%clk 0:02:55]} 8. g4 {[%clk 0:02:38]}  h5 {[%clk 0:02:47]} 9. gxh5 {[%clk 0:02:25]}  Rxh5 {[%clk 0:02:44]} 10. Nge2 {[%clk 0:02:19]}  Nf6 {[%clk 0:02:40]} 11. Ng3 {[%clk 0:02:17]}  Rh7 {[%clk 0:02:38]} 12. Bg2 {[%clk 0:01:59]}  b6 {[%clk 0:02:30]} 13. Qe2 {[%clk 0:01:49]}  Bd7 {[%clk 0:02:28]} 14. O-O-O {[%clk 0:01:11]}  Nh5 {[%clk 0:02:21]} 15. Nxh5 {[%clk 0:01:06]}  Rxh5 {[%clk 0:02:21]} 16. Rdf1 {[%clk 0:00:46]}  Qc8 {[%clk 0:01:24]} 17. Bd2 {[%clk 0:00:35]}  Qa6 {[%clk 0:01:22]} 18. f4 {[%clk 0:00:18]}  exf4 {[%clk 0:01:17]} 19. Rxf4 {[%clk 0:00:18]}  Be5 {[%clk 0:01:12]} 20. Rff1 {[%clk 0:00:17]}  f5 {[%clk 0:01:08]} 21. exf5 {[%clk 0:00:16]}  Nxf5 {[%clk 0:01:07]} 22. Qd3 {[%clk 0:00:15]}  O-O-O {[%clk 0:01:06]} 23. Re1 {[%clk 0:00:14]}  Rdh8 {[%clk 0:01:02]} 24. Rhg1 {[%clk 0:00:13]}  Rh4 {[%clk 0:01:01]} 25. b3 {[%clk 0:00:11]}  Rd4 {[%clk 0:00:59]} 26. Qc2 {[%clk 0:00:11]}  a4 {[%clk 0:00:58]} 27. Kb1 {[%clk 0:00:09]}  axb3 {[%clk 0:00:55]} 28. axb3 {[%clk 0:00:09]}  Qa5 {[%clk 0:00:55]} 29. Ne4 {[%clk 0:00:08]}  Rxd2 {[%clk 0:00:47]} 30. Qxd2 {[%clk 0:00:07]}  Qa1+ {[%clk 0:00:46]} 31. Kc2 {[%clk 0:00:08]}  Qb2+ {[%clk 0:00:47]} 32. Kd3 {[%clk 0:00:08]}  Qxb3+ {[%clk 0:00:45]} 33. Ke2 {[%clk 0:00:08]}  Nd4+ {[%clk 0:00:43]} 34. Kf2 {[%clk 0:00:08]}  Rf8+ {[%clk 0:00:42]} 35. Bf3 {[%clk 0:00:07]}  Qxf3# {[%clk 0:00:42]} 0-1


[Site "https://www.chess.com"]